fUST/lending_fUST_20251116
["ID","MTS","AMOUNT","RATE_DAILY","PERIOD"]
[394061155,1763237469789,-282.71241,0.000388,120]
[394061156,1763237469815,-282.71241,0.000388,120]
[394061157,1763237469839,-189.048218,0.000388,120]
[394061158,1763237469863,-189.048218,0.000388,120]
[394061159,1763237469888,-189.048218,0.000388,120]
[394061160,1763237469915,-189.048218,0.000388,120]
[394061161,1763237469942,-157.28301,0.000388,120]
[394061162,1763237469969,-151.0,0.000388,120]
[394061163,1763237469995,-151.0,0.000388,120]
[394061164,1763237470023,-151.0,0.000388,120]
[394061165,1763237470052,-151.0,0.000388,120]
[394061166,1763237470089,-195.960919,0.000388,120]
[394061167,1763237470128,-151.0,0.000388,120]
[394061168,1763237470152,-151.0,0.000388,120]
[394061169,1763237470178,-151.0,0.000388,120]
[394061170,1763237470203,-151.0,0.000388,120]
[394061171,1763237470229,-151.0,0.000388,120]
[394061172,1763237470254,-151.0,0.000388,120]
[394061173,1763237470279,-151.0,0.000388,120]
[394061174,1763237470303,-281.95244,0.000388,120]
[394061175,1763237470329,-151.0,0.000388,120]
[394061176,1763237470353,-151.0,0.000388,120]
[394061177,1763237470378,-222.029966,0.000388,120]
[394061178,1763237470403,-151.0,0.000388,120]
[394061179,1763237470428,-151.0,0.000388,120]
[394061180,1763237470454,-151.0,0.000388,120]
[394061181,1763237470479,-151.0,0.000388,120]
[394061182,1763237470505,-151.0,0.000388,120]
[394061183,1763237470531,-268.40474,0.000388,120]
[394061184,1763237470556,-151.0,0.000388,120]
[394061185,1763237470582,-511.642933,0.000388,120]
[394061186,1763237470607,-151.0,0.000388,120]
[394061187,1763237470634,-511.642933,0.000388,120]
[394061188,1763237470659,-511.642933,0.000388,120]
[394061189,1763237470685,-511.642933,0.000388,120]
[394061190,1763237470710,-151.0,0.000388,120]
[394061191,1763237470734,-151.0,0.000388,120]
[394061192,1763237470763,-1000.0,0.00039,120]
[394061193,1763237470790,-864.0,0.00039569,90]
[394061194,1763237470815,-885.65167893,0.000396,120]
[394061195,1763237470840,-420.0,0.00040194,120]
[394061196,1763237470865,-390.063571,0.00040274,120]
[394061197,1763237470891,-885.65167893,0.000408,120]
[394061198,1763237470919,-500.01,0.00041096,120]
[394061199,1763237470946,-500.0,0.0004137,120]
[394061200,1763237470972,-500.0,0.00041644,120]
[394061201,1763237470998,-500.0,0.00041918,120]
[394061202,1763237471028,-197.0,0.00042,30]
[394061203,1763237471055,-885.65167893,0.00042,120]
[394061204,1763237471080,-1099.61923835,0.0004204,120]
[394061205,1763237471107,-500.0,0.00042192,120]
[394061206,1763237471134,-447.0,0.00042194,120]
[394061207,1763237471161,-500.0,0.00042466,120]
[394061208,1763237471188,-163.535414,0.00042512,120]
[394061209,1763237471216,-390.063571,0.00042512,120]
[394061210,1763237471243,-500.0,0.0004274,120]
[394061211,1763237471268,-161.43731666,0.0004274,30]
[394061212,1763237471293,-500.0,0.00043014,120]
[394061213,1763237471318,-161.43731666,0.00043068,30]
[394061214,1763237471342,-333094.0,0.0004322,30]
[394061215,1763237471366,-500.0,0.00043288,120]
[394061216,1763237471392,-885.65167893,0.000433,120]
[394061217,1763237471419,-161.43731666,0.00043397,30]
[394061218,1763237471446,-1000.0,0.00043525,90]
[394061219,1763237471470,-500.0,0.00043562,120]
[394061220,1763237471495,-161.43731666,0.00043699,30]
[394061221,1763237471519,-500.0,0.00043836,120]
[394061222,1763237471544,-161.43731666,0.00044027,30]
[394061223,1763237471569,-500.0,0.0004411,120]
[394061224,1763237471595,-474.0,0.00044194,120]
[394061225,1763237471702,-161.43731666,0.00044356,30]
[394061226,1763237471729,-885.65167893,0.000446,120]
[394061227,1763237471754,-161.43731666,0.00044685,30]
[394061228,1763237471779,-163.535414,0.00044749,120]
[394061229,1763237471804,-390.063571,0.00044749,120]
[394061230,1763237471830,-161.43731666,0.00045014,30]
[394061231,1763237471854,-58142.25520287,0.00046,30]
[394061232,1763237471880,-501.0,0.00046194,120]
[394061233,1763237471908,-1000.0,0.00047878,90]
[394061234,1763237471936,-244.0,0.00047878,90]
[394061235,1763237471960,-199.08756416,0.00048194,120]
[394061236,1763237471983,-1565.5,0.00048219,120]
[394061237,1763237472009,-294.0,0.00049,90]
[394061238,1763237472038,-156.65737578,0.0004937,120]
[394061239,1763237472064,-294.0,0.00049589,120]
[394061240,1763237472090,-246.046,0.00049635,87]
[394061241,1763237472117,-500.0,0.00049719,60]
[394061242,1763237472143,-1005.9698233,0.0005,120]
[394061243,1763237472169,-480.0,0.0005,120]
[394061244,1763237472194,-563.23287203,0.00050271,120]
[394061245,1763237472219,-242.42,0.00050685,60]
[394061246,1763237472244,-6000.0,0.00051,30]
[394061247,1763237472269,-2149.0,0.00051305,120]
[394061248,1763237472293,-500.0,0.00051405,120]
[394061249,1763237472319,-294.0,0.00051781,120]
[394061250,1763237472536,215.013989,0.00030709,31]
[394061251,1763237472736,150.0,0.00034967,30]
[394061252,1763237472784,181.28,0.00038146,30]
[394061253,1763237472833,271.92,0.00041325,30]
[394061254,1763237472890,362.56,0.00044504,30]
[394061255,1763237472937,453.2,0.00047683,30]
[394061256,1763237472974,151.0,0.00051755,30]
[394061257,1763237473006,543.84,0.00050861,30]
[394061258,1763237473331,203.01,0.00020962,10]
[394061259,1763237474131,500.0,0.00051755,30]
[394061260,1763237474369,500.0,0.00051755,30]
[394061261,1763237474593,500.0,0.00051755,30]
[394061262,1763237474793,500.0,0.00051755,30]
[394061263,1763237474990,500.0,0.00051755,30]
[394061264,1763237475156,500.0,0.00051755,30]
[394061265,1763237475382,224.981696,0.00051755,30]
[394061266,1763237495875,169.17,0.00020962,10]
[394061267,1763237507071,845.9,0.00020962,10]
[394061268,1763237544103,250.0,0.00019692,2]
[394061270,1763237639759,153.57522009,0.00019996,2]
[394061271,1763237647830,1567.93203409,0.00019996,2]
[394061272,1763237656128,4071.0507694,0.00019996,2]
[394061273,1763237684256,14034.426859,0.00019971,2]
[394061278,1763237947484,240.66194298,0.000199,2]
[394061279,1763237951207,-162.506587,0.00019999,2]
[394061280,1763237953740,98630.78183372,0.0001999,2]
[394061281,1763237979607,816.75505373,0.000199,2]
[394061282,1763238002936,57115.1284685,0.00019892,2]
[394061283,1763238003749,-170.11,0.00019999,2]
[394061284,1763238009792,180.92,0.0001999,2]
[394061285,1763238010500,-129.89,0.00019999,2]
[394061286,1763238010521,-300.0,0.00019999,2]
[394061287,1763238010544,-300.0,0.00019999,2]
[394061288,1763238010564,-300.0,0.00019999,2]
[394061289,1763238010586,-925.50317765,0.00019999,2]
[394061290,1763238012516,300.0,0.0001,7]
[394061291,1763238013662,-162.08989597,0.00019999,2]
[394061292,1763238013870,293.06,0.0001,20]
[394061293,1763238042403,-112.40692638,0.00019999,2]
[394061294,1763238042427,-500.0,0.00019999,2]
[394061295,1763238042449,-500.0,0.00019999,2]
[394061296,1763238042473,-413.16149395,0.00019999,2]
[394061297,1763238044597,-86.83850605,0.00019999,2]
[394061298,1763238044625,-478.26213901,0.00019999,2]
[394061299,1763238047975,-21.73786099,0.00019999,2]
[394061300,1763238047998,-144.82803523,0.00019999,2]
[394061301,1763238054094,-291.08093029,0.00019999,2]
[394061302,1763238058254,-64.09103448,0.00019999,2]
[394061303,1763238058280,-143.49451058,0.00019999,2]
[394061304,1763238062400,-265.14901685,0.00019998,2]
[394061305,1763238064450,-34.85098315,0.00019998,2]
[394061306,1763238064472,-182.64971405,0.00019999,2]
[394061307,1763238071109,-203.63309217,0.00019999,2]
[394061308,1763238073292,-113.71719378,0.00019999,2]
[394061309,1763238073321,-356.50548942,0.00019999,2]
[394061310,1763238073344,-67.24298412,0.00019999,2]
[394061311,1763238078608,-289.44003765,0.00019999,2]
[394061312,1763238085703,-143.31697823,0.00019999,2]
[394061313,1763238085727,-117.889511,0.00019999,2]
[394061314,1763238088975,-285.00156619,0.00019999,2]
[394061315,1763238089449,444.50614289,0.00019899,2]
[394061316,1763238092287,-97.10892281,0.00019999,2]
[394061317,1763238092316,-234.64001759,0.00019999,2]
[394061318,1763238101060,-254.54025844,0.00019999,2]
[394061319,1763238104118,-177.6496197,0.00019999,2]
[394061320,1763238131742,-181.682031,0.00019998,2]
[394061321,1763238142987,10696.70940057,0.00019899,2]
[394061322,1763238149851,5227.70165445,0.00019936,2]
[394061325,1763238161820,-118.317969,0.00019998,2]
[394061326,1763238161841,-71.81436847,0.00019998,2]
[394061327,1763238164319,-428.18563153,0.00019998,2]
[394061328,1763238164347,-71.81436847,0.00019998,2]
[394061329,1763238168714,-189.90951677,0.00019997,2]
[394061330,1763238172214,-901.76406523,0.00019997,2]
[394061331,1763238174715,-108.326418,0.00019997,2]
[394061332,1763238174738,-200.873582,0.00019998,2]
[394061333,1763238176700,-227.31204953,0.00019998,2]
[394061334,1763238176723,-191.65358781,0.00019998,2]
[394061335,1763238178187,1400.873582,0.00019996,2]
[394061336,1763238180893,-308.34641219,0.00019998,2]
[394061337,1763238180916,-61.06563545,0.00019998,2]
[394061338,1763238183220,-300.0,0.00019997,2]
[394061339,1763238183242,-205.35222793,0.00019998,2]
[394061340,1763238201218,1293.72991291,0.00019996,2]
[394061341,1763238224711,889.01228576,0.00019898,2]
[394061342,1763238281117,-300.0,0.00019997,2]
[394061343,1763238284650,-300.0,0.00019997,2]
[394061344,1763238294188,151.0,0.000193,2]
[394061345,1763238294533,151.0,0.000179,2]
[394061346,1763238294848,151.0,0.000166,2]
[394061347,1763238295200,151.0,0.000152,2]
[394061348,1763238295541,151.0,0.000138,2]
[394061349,1763238295883,151.0,0.000124,2]
[394061350,1763238296167,151.0,0.00011,2]
[394061351,1763238301254,300.0,0.00019996,2]
[394061352,1763238301896,278.0,0.00019996,2]
[394061353,1763238302066,300.0,0.00019996,2]
[394061354,1763238306476,300.0,0.00019996,2]
[394061355,1763238307455,1200.0,0.00019996,2]
[394061358,1763238362232,300.0,0.00019996,2]
[394061359,1763238370907,5687.32,0.00019987,3]
[394061360,1763238381569,2843.66,0.00019987,3]
[394061365,1763238392259,1421.83,0.00019987,3]
[394061366,1763238402903,710.91,0.00019987,3]
[394061367,1763238413389,9359.62072556,0.00019897,2]
[394061368,1763238414076,355.46,0.00019987,3]
[394061369,1763238414781,500.0,0.00019996,2]
[394061370,1763238414812,500.0,0.00019996,2]
[394061371,1763238414842,500.0,0.00019996,2]
[394061372,1763238414874,500.0,0.00019996,2]
[394061373,1763238414905,500.0,0.00019996,2]
[394061374,1763238414934,500.0,0.00019996,2]
[394061375,1763238414965,500.0,0.00019996,2]
[394061376,1763238414996,500.0,0.00019996,2]
[394061377,1763238415026,500.0,0.00019996,2]
[394061378,1763238415056,500.0,0.00019996,2]
[394061379,1763238415085,500.0,0.00019996,2]
[394061380,1763238415119,500.0,0.00019996,2]
[394061381,1763238415148,500.0,0.00019996,2]
[394061382,1763238415180,500.0,0.00019996,2]
[394061383,1763238415214,500.0,0.00019996,2]
[394061384,1763238415242,500.0,0.00019996,2]
[394061385,1763238415275,500.0,0.00019996,2]
[394061386,1763238415303,500.0,0.00019996,2]
[394061387,1763238415335,500.0,0.00019996,2]
[394061388,1763238415365,500.0,0.00019996,2]
[394061389,1763238415396,500.0,0.00019996,2]
[394061390,1763238415429,500.0,0.00019996,2]
[394061391,1763238415460,500.0,0.00019996,2]
[394061392,1763238415490,450.0,0.00019996,2]
[394061393,1763238415520,500.0,0.00019996,2]
[394061394,1763238415551,500.0,0.00019996,2]
[394061395,1763238415581,500.0,0.00019996,2]
[394061396,1763238415610,500.0,0.00019996,2]
[394061397,1763238415640,500.0,0.00019996,2]
[394061398,1763238415671,500.0,0.00019996,2]
[394061399,1763238415701,500.0,0.00019996,2]
[394061400,1763238415732,500.0,0.00019996,2]
[394061401,1763238415766,500.0,0.00019996,2]
[394061402,1763238415798,402.67373373,0.00019996,2]
[394061403,1763238415832,500.0,0.00019996,2]
[394061404,1763238415863,500.0,0.00019996,2]
[394061405,1763238415897,500.0,0.00019996,2]
[394061406,1763238415928,500.0,0.00019996,2]
[394061407,1763238415958,500.0,0.00019996,2]
[394061408,1763238415988,500.0,0.00019996,2]
[394061409,1763238416024,500.0,0.00019996,2]
[394061410,1763238416057,500.0,0.00019996,2]
[394061411,1763238416088,500.0,0.00019996,2]
[394061412,1763238416121,500.0,0.00019996,2]
[394061413,1763238416156,500.0,0.00019996,2]
[394061414,1763238416187,500.0,0.00019996,2]
[394061415,1763238416217,500.0,0.00019996,2]
[394061416,1763238416343,500.0,0.00019996,2]
[394061417,1763238416447,500.0,0.00019996,2]
[394061418,1763238416484,500.0,0.00019996,2]
[394061419,1763238416515,500.0,0.00019996,2]
[394061420,1763238416546,500.0,0.00019996,2]
[394061421,1763238416577,500.0,0.00019996,2]
[394061422,1763238416607,500.0,0.00019996,2]
[394061423,1763238416636,500.0,0.00019996,2]
[394061424,1763238416665,500.0,0.00019996,2]
[394061425,1763238416696,500.0,0.00019996,2]
[394061426,1763238416727,596.29986981,0.00019996,2]
[394061427,1763238416757,500.0,0.00019996,2]
[394061428,1763238416790,500.0,0.00019996,2]
[394061429,1763238416819,500.0,0.00019996,2]
[394061430,1763238416849,500.0,0.00019996,2]
[394061431,1763238416879,573.14665297,0.00019996,2]
[394061432,1763238416916,500.0,0.00019996,2]
[394061433,1763238416947,500.0,0.00019996,2]
[394061434,1763238416980,500.0,0.00019996,2]
[394061435,1763238417014,500.0,0.00019996,2]
[394061436,1763238417043,500.0,0.00019996,2]
[394061437,1763238417072,500.0,0.00019996,2]
[394061438,1763238417101,512.73785724,0.00019996,2]
[394061439,1763238417136,600.0,0.00019996,2]
[394061440,1763238422471,300.0,0.00019995,2]
[394061441,1763238424230,177.73,0.0001999,3]
[394061443,1763238435174,533.21,0.0001999,3]
[394061444,1763238436984,201.93286099,0.00019987,2]
[394061445,1763238440093,500.0,0.00019996,2]
[394061446,1763238440148,427.40368411,0.00019996,2]
[394061447,1763238448163,605.63666042,0.00019896,4]
[394061449,1763238466573,1200.0,0.00019995,2]
[394061450,1763238469714,1167.1296327,0.00019996,2]
[394061451,1763238469753,1167.1296327,0.00019996,2]
[394061452,1763238469787,1167.1296327,0.00019996,2]
[394061453,1763238469819,1167.1296327,0.00019996,2]
[394061454,1763238469854,1167.1296327,0.00019996,2]
[394061455,1763238469885,1167.1296327,0.00019996,2]
[394061456,1763238469915,1167.1296327,0.00019996,2]
[394061457,1763238469946,1167.1296327,0.00019996,2]
[394061458,1763238469978,1167.1296327,0.00019996,2]
[394061459,1763238470009,1167.1296327,0.00019996,2]
[394061460,1763238470040,1167.1296327,0.00019996,2]
[394061461,1763238470076,1167.1296327,0.00019996,2]
[394061462,1763238470107,1167.1296327,0.00019996,2]
[394061463,1763238470139,1167.1296327,0.00019996,2]
[394061464,1763238470169,1167.1296327,0.00019996,2]
[394061465,1763238470208,1167.1296327,0.00019996,2]
[394061466,1763238470241,1167.1296327,0.00019996,2]
[394061467,1763238470274,1167.1296327,0.00019996,2]
[394061468,1763238470305,1167.1296327,0.00019996,2]
[394061469,1763238470349,1167.1296327,0.00019996,2]
[394061470,1763238470381,1167.1296327,0.00019996,2]
[394061471,1763238470413,1167.1296327,0.00019996,2]
[394061472,1763238470445,1167.1296327,0.00019996,2]
[394061473,1763238470480,1167.1296327,0.00019996,2]
[394061474,1763238470512,1167.1296327,0.00019996,2]
[394061475,1763238470546,1167.1296327,0.00019996,2]
[394061476,1763238470581,1167.1296327,0.00019996,2]
[394061477,1763238470617,1167.1296327,0.00019996,2]
[394061478,1763238470649,1167.1296327,0.00019996,2]
[394061479,1763238470680,1167.1296327,0.00019996,2]
[394061480,1763238470711,1167.1296327,0.00019996,2]
[394061481,1763238470845,1167.1296327,0.00019996,2]
[394061482,1763238470878,1167.1296327,0.00019996,2]
[394061483,1763238470910,1167.1296327,0.00019996,2]
[394061484,1763238470943,1167.1296327,0.00019996,2]
[394061485,1763238470977,1167.1296327,0.00019996,2]
[394061486,1763238471009,1167.1296327,0.00019996,2]
[394061487,1763238471042,1167.1296327,0.00019996,2]
[394061488,1763238471075,1167.1296327,0.00019996,2]
[394061489,1763238471108,1167.1296327,0.00019996,2]
[394061490,1763238471148,1167.1296327,0.00019996,2]
[394061491,1763238471180,1167.1296327,0.00019996,2]
[394061492,1763238471213,1167.1296327,0.00019996,2]
[394061493,1763238471245,1167.1296327,0.00019996,2]
[394061494,1763238471282,1167.1296327,0.00019996,2]
[394061495,1763238471315,1167.1296327,0.00019996,2]
[394061496,1763238471347,1167.1296327,0.00019996,2]
[394061497,1763238471395,1167.1296327,0.00019996,2]
[394061498,1763238471427,1167.1296327,0.00019996,2]
[394061499,1763238471460,1167.1296327,0.00019996,2]
[394061500,1763238471497,1167.1296327,0.00019996,2]
[394061501,1763238471531,1167.1296327,0.00019996,2]
[394061502,1763238471566,1167.1296327,0.00019996,2]
[394061503,1763238471599,1167.1296327,0.00019996,2]
[394061504,1763238471631,1167.1296327,0.00019996,2]
[394061505,1763238471667,1167.1296327,0.00019996,2]
[394061506,1763238471971,1167.1296327,0.00019996,2]
[394061507,1763238472002,1167.1296327,0.00019996,2]
[394061508,1763238482508,300.0,0.00019995,2]
[394061509,1763238489488,500.0,0.00019996,2]
[394061510,1763238489521,1167.1296327,0.00019996,2]
[394061511,1763238489552,500.0,0.00019996,2]
[394061512,1763238489582,500.0,0.00019996,2]
[394061513,1763238489611,500.0,0.00019996,2]
[394061514,1763238489795,500.0,0.00019996,2]
[394061515,1763238489829,1167.1296327,0.00019996,2]
[394061516,1763238489860,500.0,0.00019996,2]
[394061517,1763238489890,500.0,0.00019996,2]
[394061518,1763238490040,500.0,0.00019996,2]
[394061519,1763238490097,500.0,0.00019996,2]
[394061520,1763238490128,500.0,0.00019996,2]
[394061521,1763238490161,1167.1296327,0.00019996,2]
[394061522,1763238490192,500.0,0.00019996,2]
[394061523,1763238490239,500.0,0.00019996,2]
[394061524,1763238490405,500.0,0.00019996,2]
[394061525,1763238490442,500.0,0.00019996,2]
[394061526,1763238490477,1167.1296327,0.00019996,2]
[394061527,1763238490512,500.0,0.00019996,2]
[394061528,1763238490553,500.0,0.00019996,2]
[394061529,1763238490693,500.0,0.00019996,2]
[394061530,1763238490740,500.0,0.00019996,2]
[394061531,1763238490774,1167.1296327,0.00019996,2]
[394061532,1763238490806,500.0,0.00019996,2]
[394061533,1763238490909,500.0,0.00019996,2]
[394061534,1763238491015,500.0,0.00019996,2]
[394061535,1763238491059,500.0,0.00019996,2]
[394061536,1763238491089,500.0,0.00019996,2]
[394061537,1763238491122,1167.1296327,0.00019996,2]
[394061538,1763238491290,500.0,0.00019996,2]
[394061539,1763238491329,500.0,0.00019996,2]
[394061540,1763238491362,231.51393417,0.00019996,2]
[394061541,1763238491395,500.0,0.00019996,2]
[394061542,1763238491425,500.0,0.00019996,2]
[394061543,1763238491457,500.0,0.00019996,2]
[394061544,1763238491495,500.0,0.00019996,2]
[394061545,1763238491530,500.0,0.00019996,2]
[394061546,1763238491563,1167.1296327,0.00019996,2]
[394061547,1763238491595,500.0,0.00019996,2]
[394061548,1763238491625,500.0,0.00019996,2]
[394061549,1763238491656,500.0,0.00019996,2]
[394061550,1763238491687,614.6407152,0.00019996,2]
[394061551,1763238491723,500.0,0.00019996,2]
[394061552,1763238491804,500.0,0.00019996,2]
[394061553,1763238491838,1167.1296327,0.00019996,2]
[394061554,1763238491868,500.0,0.00019996,2]
[394061555,1763238491899,500.0,0.00019996,2]
[394061556,1763238491932,500.0,0.00019996,2]
[394061557,1763238491962,500.0,0.00019996,2]
[394061558,1763238491993,500.0,0.00019996,2]
[394061559,1763238492024,500.0,0.00019996,2]
[394061560,1763238492054,500.0,0.00019996,2]
[394061561,1763238492084,500.0,0.00019996,2]
[394061562,1763238492113,500.0,0.00019996,2]
[394061563,1763238492143,500.0,0.00019996,2]
[394061564,1763238492172,500.0,0.00019996,2]
[394061565,1763238492205,433.68711105,0.00019996,2]
[394061566,1763238492235,500.0,0.00019996,2]
[394061567,1763238492265,500.0,0.00019996,2]
[394061568,1763238492303,500.0,0.00019996,2]
[394061569,1763238492356,500.0,0.00019996,2]
[394061570,1763238492463,500.0,0.00019996,2]
[394061571,1763238492536,500.0,0.00019996,2]
[394061572,1763238492572,500.0,0.00019996,2]
[394061573,1763238492617,500.0,0.00019996,2]
[394061574,1763238492679,500.0,0.00019996,2]
[394061575,1763238492737,500.0,0.00019996,2]
[394061576,1763238492790,500.0,0.00019996,2]
[394061577,1763238502485,500.0,0.00019996,2]
[394061578,1763238502518,1167.1296327,0.00019996,2]
[394061579,1763238504050,500.0,0.00019996,2]
[394061580,1763238504275,500.0,0.00019996,2]
[394061581,1763238504324,158.31987678,0.00019996,2]
[394061582,1763238505080,500.0,0.00019996,2]
[394061583,1763238507721,1167.1296327,0.00019996,2]
[394061584,1763238508003,1167.1296327,0.00019996,2]
[394061585,1763238508043,1167.1296327,0.00019996,2]
[394061586,1763238508079,1167.1296327,0.00019996,2]
[394061587,1763238508114,1167.1296327,0.00019996,2]
[394061588,1763238508146,1167.1296327,0.00019996,2]
[394061589,1763238508179,1167.1296327,0.00019996,2]
[394061590,1763238508285,1167.1296327,0.00019996,2]
[394061591,1763238508316,1167.1296327,0.00019996,2]
[394061592,1763238508351,1167.1296327,0.00019996,2]
[394061593,1763238508385,1167.1296327,0.00019996,2]
[394061594,1763238508431,1167.1296327,0.00019996,2]
[394061595,1763238508469,1167.1296327,0.00019996,2]
[394061596,1763238508507,1167.1296327,0.00019996,2]
[394061597,1763238508541,1167.1296327,0.00019996,2]
[394061598,1763238508574,1167.1296327,0.00019996,2]
[394061599,1763238508607,1167.1296327,0.00019996,2]
[394061601,1763238508638,1167.1296327,0.00019996,2]
[394061602,1763238508675,1167.1296327,0.00019996,2]
[394061603,1763238508845,1167.1296327,0.00019996,2]
[394061604,1763238508879,1167.1296327,0.00019996,2]
[394061605,1763238508916,1167.1296327,0.00019996,2]
[394061606,1763238515774,500.0,0.00019996,2]
[394061608,1763238517649,314.16,0.0001999,3]
[394061610,1763238520755,25066.61164016,0.0001,2]
[394061611,1763238521166,2379.90157215,0.0001,2]
[394061613,1763238521659,500.0,0.00019996,2]
[394061614,1763238521761,500.0,0.00019996,2]
[394061619,1763238528287,613.18,0.0001999,3]
[394061620,1763238539112,306.59,0.0001999,3]
[394061621,1763238542803,300.0,0.00019995,2]
[394061623,1763238549638,153.3,0.0001999,3]
[394061624,1763238560308,459.92,0.0001999,3]
[394061625,1763238572688,1002.25877995,0.00019996,2]
[394061626,1763238602043,300.0,0.00019996,2]
[394061627,1763238602648,151.0,0.000193,2]
[394061628,1763238602992,151.0,0.000179,2]
[394061629,1763238603354,314.77752072,0.00032877,120]
[394061630,1763238603432,905.48747259,0.00032877,120]
[394061631,1763238603475,151.0,0.000166,2]
[394061632,1763238603713,151.0,0.000152,2]
[394061633,1763238604009,151.0,0.000138,2]
[394061634,1763238604487,151.0,0.000124,2]
[394061635,1763238604800,151.0,0.00011,2]
[394061636,1763238605875,258.20801078,0.00019996,2]
[394061637,1763238605945,300.0,0.00019996,2]
[394061638,1763238607887,1200.0,0.00019996,2]
[394061643,1763238614895,151.0,0.00019996,2]
[394061644,1763238615537,151.0,0.00019996,2]
[394061645,1763238616078,201.93286099,0.00019996,2]
[394061646,1763238616152,151.0,0.00019996,2]
[394061647,1763238616764,151.0,0.00019996,2]
[394061648,1763238617372,151.0,0.00019996,2]
[394061649,1763238617993,151.0,0.00019996,2]
[394061650,1763238618613,151.0,0.00019996,2]
[394061651,1763238619258,151.0,0.00019996,2]
[394061652,1763238619863,151.0,0.00019996,2]
[394061653,1763238620474,151.0,0.00019996,2]
[394061654,1763238621141,151.0,0.00019996,2]
[394061655,1763238621793,151.0,0.00019996,2]
[394061656,1763238622440,151.0,0.00019996,2]
[394061657,1763238623045,151.0,0.00019996,2]
[394061658,1763238623686,151.0,0.00019996,2]
[394061659,1763238624097,500.0,0.00019996,2]
[394061660,1763238624155,500.0,0.00019996,2]
[394061661,1763238624212,623.14665297,0.00019996,2]
[394061662,1763238624320,151.0,0.00019996,2]
[394061663,1763238625075,151.0,0.00019996,2]
[394061664,1763238625719,151.0,0.00019996,2]
[394061665,1763238626333,151.0,0.00019996,2]
[394061666,1763238626963,151.0,0.00019996,2]
[394061674,1763238631593,500.0,0.00019996,2]
[394061678,1763238631624,500.0,0.00019996,2]
[394061681,1763238631654,314.61265935,0.00019996,2]
[394061721,1763238632106,-150.0,0.00019996,2]
[394061723,1763238632115,-611.51,0.00019997,2]
[394061725,1763238632124,-611.51,0.00019997,2]
[394061727,1763238632133,-1517.67863355,0.00019997,2]
[394061730,1763238632144,-349.7275,0.00019997,2]
[394061809,1763238637955,-287.68827176,0.00019997,2]
[394061929,1763238640700,-3e-08,0.00019997,2]
[394061949,1763238644428,-2661.61000003,0.00019997,2]
[394061964,1763238646165,-957.10000042,0.00019997,2]
[394061968,1763238660851,500.0,0.00019996,2]
[394061969,1763238660904,500.0,0.00019996,2]
[394061970,1763238660940,500.0,0.00019996,2]
[394061971,1763238661012,602.99869808,0.00019996,2]